Cogmind - Beta 12 @@@ ROGUE MODE // 2023.06.01 @ 21:46:25 Player: Mr Goldstein Result: Destroyed by as-23990 with Assembled Blade Performance ------------- Evolutions (1) 500 Regions Visited (4) 800 Robots Destroyed (0) 0 Value Destroyed (0) 0 Prototype IDs (0) 0 Alien Tech Used (0) 0 Bonus (200) 200 TOTAL SCORE: 1500 Bonus ------- Pacifist 200 Cogmind --------- Core Integrity 0/400 Matter 290/300 Energy 79/100 System Corruption 1% Temperature Cool (0) Movement Core (50) Location -9/Mines Parts ------- > --- POWER (1) -------- (None) > --- PROPULSION (3) --- (None) > --- UTILITY (3) ------ (None) > --- WEAPON (2) ------- Ripper > --- INVENTORY (5) ---- Small Storage Unit Light Armor Plating Peak State ------------ > --- POWER ------------ (None) > --- PROPULSION ------- (None) > --- UTILITY ---------- (None) > --- WEAPON ----------- Ripper > --- INVENTORY -------- Small Storage Unit Light Armor Plating [Rating: 4] Favorites ----------- Power None Propulsion None Utility Light Armor Plating Protection Light Armor Plating Weapon Grenade Launcher Launcher Grenade Launcher Slashing Weapon Ripper Build | -11 -10 -10 -9 -9 ------- Run | Jun Mat Min Mat Min Slots Evolved 2 | . . . 2 . Power . | . . . . . Propulsion 1 | . . . 1 . Utility 1 | . . . 1 . Weapon . | . . . . . Parts Attached 4 | . 1 . . 3 Power . | . . . . . Engine . | . . . . . Core . | . . . . . Reactor . | . . . . . Propulsion . | . . . . . Treads . | . . . . . Leg . | . . . . . Wheel . | . . . . . Hover . | . . . . . Flight . | . . . . . Utility 2 | . 1 . . 1 Device . | . . . . . Storage . | . . . . . Processor . | . . . . . Hackware . | . . . . . Protection 2 | . 1 . . 1 Artifact . | . . . . . Weapon 2 | . . . . 2 Energy Gun . | . . . . . Energy Cannon . | . . . . . Ballistic Gun . | . . . . . Ballistic Cannon . | . . . . . Launcher 1 | . . . . 1 Special Weapon . | . . . . . Impact Weapon . | . . . . . Slashing Weapon 1 | . . . . 1 Piercing Weapon . | . . . . . Special Melee Weapon . | . . . . . Unidentified Prototypes . | . . . . . Parts Lost 3 | . . . . 3 Power . | . . . . . Propulsion . | . . . . . Utility 2 | . . . . 2 Weapon 1 | . . . . 1 Highest Loss Streak 2 | . . . . 2 To Critical Strikes . | . . . . . Average Slot Usage (%) 7 | . 9 14 11 6 Protection 7 | . 9 14 11 6 Naked Turns 68 | . 6 . . 62 Heaviest Build 3 | . 3 3 3 3 Greatest Support 3 | 3 3 3 3 3 Greatest Overweight (x) . | . . . . . Average Overweight (x) . | . . . . . Largest Inventory Capacity 5 | 5 5 5 5 5 Average Capacity 5 | 5 5 5 5 5 Most Carried 4 | 1 4 4 4 4 Average Carried 2 | . 3 4 4 2 Final Capacity 5 | 5 5 5 5 5 Final Carried 4 | 1 4 4 4 2 Class Distribution -------------------- 100% | Mutant Dominant Class ---------------- Mutant | -10/Materials Mutant | -10/Mines Mutant | -9/Materials Mutant | -9/Mines Resources | -11 -10 -10 -9 -9 ----------- Run | Jun Mat Min Mat Min Matter Collected 272 | 157 . . 53 62 Remotely . | . . . . . Salvage Created 19 | . . . . 19 Parts . | . . . . . Haulers Intercepted . | . . . . . Recyclers Shooed . | . . . . . Parts Field Recycled . | . . . . . Retrieved Matter . | . . . . . Parts Self-Destructed . | . . . . . Prevented . | . . . . . Kills | -11 -10 -10 -9 -9 ------- Run | Jun Mat Min Mat Min Combat Hostiles Destroyed 4 | . . . . 4 AOE 4 | . . . . 4 Classes Destroyed 1 | . . . . 1 Assembled 4 | . . . . 4 Best Kill Streak 4 | . . . . 4 Combat Bots Only 4 | . . . . 4 Max Kills in Single Turn 1 | . . . . 1 Gunslinging . | . . . . . Exploded 1 | . . . . 1 Melee . | . . . . . Uniques/NPCs Destroyed . | . . . . . Combat | -11 -10 -10 -9 -9 -------- Run | Jun Mat Min Mat Min Damage Taken 667 | . . . 47 620 Core 400 | . . . 29 371 Absorbed by Shields . | . . . . . Core Remaining (%) 100 | 100 . 100 . . Volleys Fired 5 | . . . . 5 Largest 1 | . . . . 1 Hottest 30 | . . . . 30 Shots Fired 5 | . . . . 5 Gun . | . . . . . Cannon . | . . . . . Launcher 5 | . . . . 5 Special . | . . . . . Kinetic . | . . . . . Thermal . | . . . . . Explosive 5 | . . . . 5 Electromagnetic . | . . . . . Robot Hit Streak . | . . . . . Robot Miss Streak . | . . . . . Penetration Max . | . . . . . Secondary Targets . | . . . . . Shots Hit Robots 1 | . . . . 1 Core Hits 8 | . . . . 8 Critical Kills . | . . . . . Critical Parts Destroyed . | . . . . . Critical Strikes . | . . . . . Melee Attacks 1 | . . . . 1 Impact . | . . . . . Slashing 1 | . . . . 1 Piercing . | . . . . . Sneak Attacks . | . . . . . Combat Hostiles . | . . . . . Follow-up Attacks . | . . . . . Damage Inflicted 241 | . . . . 241 Guns . | . . . . . Cannons . | . . . . . Explosions 197 | . . . . 197 Melee 37 | . . . . 37 Ramming 7 | . . . . 7 Kinetic . | . . . . . Thermal . | . . . . . Explosive 197 | . . . . 197 Electromagnetic . | . . . . . Impact . | . . . . . Slashing 37 | . . . . 37 Piercing . | . . . . . Highest Corruption 1 | . . . . 1 Average Corruption 1 | . . . . 1 Corruption Purged . | . . . . . Corruption Blocked . | . . . . . Overload Shots . | . . . . . Overflow Damage . | . . . . . Projectiles . | . . . . . Explosions . | . . . . . Melee . | . . . . . Knockbacks . | . . . . . Impact . | . . . . . Kinetic . | . . . . . Secondary . | . . . . . Self-Inflicted Damage 3 | . . . . 3 Shots . | . . . . . Rammed 2 | . . . . 2 Targets Rammed 2 | . . . . 2 Kicked . | . . . . . Crushed . | . . . . . Highest Temperature 7 | . . . . 7 Average Temperature 7 | . . . . 7 Received Heat Transfer 164 | . . . 24 140 Siege Activations . | . . . . . Robots Corrupted . | . . . . . Combat Hostiles . | . . . . . Parts Fried . | . . . . . Impact Corruptions . | . . . . . Robots Melted . | . . . . . Combat Hostiles . | . . . . . Parts Melted . | . . . . . Heat Transferred . | . . . . . Parts Sabotaged . | . . . . . Parts Stolen . | . . . . . Parts Stripped . | . . . . . Power Chain Reactions . | . . . . . Missiles Intercepted . | . . . . . Alert | -11 -10 -10 -9 -9 ------- Run | Jun Mat Min Mat Min Peak Influence 121 | . 15 5 8 121 Initial 5 | . . 5 1 3 Average 38 | . 9 5 6 53 Maximum Alert Level . | . . . . . Low Security (%) 100 | 100 100 100 100 100 Level 1 . | . . . . . Level 2 . | . . . . . Level 3 . | . . . . . Level 4 . | . . . . . Level 5 . | . . . . . High Security . | . . . . . Max Security . | . . . . . Squads Dispatched 1 | . 1 . . . Investigation . | . . . . . Extermination . | . . . . . Reinforcement 1 | . 1 . . . Assault . | . . . . . Garrison . | . . . . . Intercept . | . . . . . Searches Triggered . | . . . . . Construction Impeded . | . . . . . Haulers Reinforced . | . . . . . Active Scanning Responses . | . . . . . Cargo Convoy Interrupts . | . . . . . Stealth | -11 -10 -10 -9 -9 --------- Run | Jun Mat Min Mat Min Distress Signals 1 | . . . . 1 Communications Jammed . | . . . . . Distress Signals . | . . . . . Times Spotted 21 | . 2 . 2 17 Peak Tracking Total 8 | . 1 . 2 8 Tactical Retreats 4 | . . . . 4 Traps | -11 -10 -10 -9 -9 ------- Run | Jun Mat Min Mat Min Traps Triggered . | . . . . . Indirectly . | . . . . . Trap Hack Attempts . | . . . . . Triggered . | . . . . . Disarmed . | . . . . . Reprogrammed . | . . . . . Reused . | . . . . . Traps Extracted . | . . . . . Installed . | . . . . . Triggered . | . . . . . Machines | -11 -10 -10 -9 -9 ---------- Run | Jun Mat Min Mat Min Machines Disabled . | . . . . . Max in Single Turn . | . . . . . Machines Repaired . | . . . . . Machines Sabotaged . | . . . . . Overloaded Fab Kills . | . . . . . Hacking | -11 -10 -10 -9 -9 --------- Run | Jun Mat Min Mat Min Machines Accessed 1 | . . . 1 . Terminals 1 | . . . 1 . Fabricators . | . . . . . Repair Stations . | . . . . . Recycling Units . | . . . . . Scanalyzers . | . . . . . Garrison Access . | . . . . . Total Hacks 1 | . . . 1 . Successful 1 | . . . 1 . Failed . | . . . . . Catastrophic . | . . . . . Database Lockouts . | . . . . . Manual 1 | . . . 1 . Terminals 1 | . . . 1 . Fabricators . | . . . . . Repair Stations . | . . . . . Recycling Units . | . . . . . Scanalyzers . | . . . . . Garrison Access . | . . . . . Terminal Hacks 1 | . . . 1 . Branch Access Points 1 | . . . 1 . Fabricator Hacks . | . . . . . Repair Station Hacks . | . . . . . Recycling Unit Hacks . | . . . . . Scanalyzer . | . . . . . Garrison Access Hacks . | . . . . . Unauthorized Hacks . | . . . . . Terminals . | . . . . . Fabricators . | . . . . . Repair Stations . | . . . . . Recycling Units . | . . . . . Scanalyzers . | . . . . . Garrison Access . | . . . . . Data Cores Recovered . | . . . . . Used . | . . . . . Hacking Detections . | . . . . . Full Trace Events . | . . . . . Feedback Events . | . . . . . Feedback Blocked . | . . . . . Robot Schematics Acquired . | . . . . . Robots Built . | . . . . . Authchips . | . . . . . Time . | . . . . . Total Robot Build Rating . | . . . . . Part Schematics Acquired . | . . . . . Parts Built . | . . . . . Authchips . | . . . . . Time . | . . . . . Total Part Build Rating . | . . . . . Parts Repaired . | . . . . . Time . | . . . . . Parts Recycled . | . . . . . Recycled Matter . | . . . . . Retrieved Matter . | . . . . . Retrieved Components . | . . . . . Parts Scanalyzed . | . . . . . Part Schematics Acquired . | . . . . . Parts Damaged . | . . . . . Bothacking | -11 -10 -10 -9 -9 ------------ Run | Jun Mat Min Mat Min Used RIF Installer . | . . . . . Robots Hacked . | . . . . . Non-combat . | . . . . . Combat . | . . . . . Robot Hacks Applied . | . . . . . Relay Couplers Released . | . . . . . Fabnet Peak Effective % . | . . . . . Robots Rewired . | . . . . . Allies Hacked . | . . . . . Hacks Repelled . | . . . . . Allies | -11 -10 -10 -9 -9 -------- Run | Jun Mat Min Mat Min Total Allies 2 | . . 2 . . Largest Group 2 | . . 2 2 . Highest-Rated Group 54 | . . 54 54 . Highest-Rated Ally 31 | . . 31 31 . Total Orders . | . . . . . Ally Attacks 3 | . . . 3 . Total Damage 22 | . . . 22 . Kills . | . . . . . Allies Corrupted . | . . . . . Allies Melted . | . . . . . Intel | -11 -10 -10 -9 -9 ------- Run | Jun Mat Min Mat Min Robot Analysis Total . | . . . . . Derelict Logs Recovered 1 | . . . . 1 Drone Launches . | . . . . . Drone Recoveries . | . . . . . Exploration | -11 -10 -10 -9 -9 ------------- Run | Jun Mat Min Mat Min Turns Passed 267 | 18 29 9 30 181 Spaces Moved 488 | 34 48 17 59 330 Core 488 | 34 48 17 59 330 Treads . | . . . . . Legs . | . . . . . Wheels . | . . . . . Hover . | . . . . . Flight . | . . . . . Fastest Speed 50 | 50 50 50 50 50 Average Speed 50 | 50 50 50 50 50 Slowest Speed 50 | 50 50 50 50 50 Overloaded Moves . | . . . . . Propulsion Burnouts . | . . . . . Robots Hopped . | . . . . . Cave-ins Triggered . | . . . . . Exploration Rate (%) 24 | 4 15 12 10 83 Regions Visited 4 Branch Regions 2 Pre-discovered Areas . | . . . . . Known Exits Taken 1 | . . . 1 . Unknown Exits Taken 3 | 1 1 1 . . Scrap Searched 1 | . . . . 1 Spaces Dug 14 | . . . . 14 Terrain Destroyed 25 | . . . . 25 Melee . | . . . . . Projectile . | . . . . . AOE 25 | . . . . 25 Terrain Rammed . | . . . . . Walls Destroyed . | . . . . . Machines Disabled . | . . . . . Actions | -11 -10 -10 -9 -9 --------- Run | Jun Mat Min Mat Min Total 500 | 34 51 16 58 341 Wait . | . . . . . Move 484 | 33 47 16 58 330 Hop . | . . . . . Pick Up 4 | 1 3 . . . Fast Attach 2 | . 1 . . 1 Attach 2 | . . . . 2 Detach . | . . . . . Swap . | . . . . . Drop . | . . . . . Fire 5 | . . . . 5 Melee 1 | . . . . 1 Ram 2 | . . . . 2 Kick . | . . . . . Crush . | . . . . . Escape Stasis . | . . . . . Rewire . | . . . . . Trap . | . . . . . Miscellaneous . | . . . . . Route ------- -11/Junkyard -10/Materials -10/Mines -9/Materials (discovered 2 exits: *Min x2) -9/Mines History --------- Turn | Location | Event 8 | -11/Junkyard | Discovered new exit (range 15) 19 | -11/Junkyard | Entered Materials 45 | -10/Materials | Discovered new exit (range 6) 48 | -10/Materials | Entered Mines 53 | -10/Mines | Discovered new exit (range 6) 57 | -10/Mines | Entered Materials 57 | -9/Materials | Accompanied by 2 allies 57 | -9/Materials | Evolved 2 slots: Propulsion x1, Utility x1 62 | -9/Materials | Identified exit to Mines 64 | -9/Materials | Led the pair of lost Derelicts to an unsafe place 87 | -9/Materials | Entered Mines 88 | -9/Mines | Assembled infested the area 149 | -9/Mines | Learned location of 1 exit from Materials 208 | -9/Mines | Core integrity fell below 50% 229 | -9/Mines | Core integrity fell below 20% 266 | -9/Mines | A weapon hastily lodged in a ceiling crevice suddenly fell to the ground 268 | -9/Mines | Destroyed by as-23990 with Assembled Blade Last Messages --------------- 00177_ Destabilizing: System corrupted (+1). 00199_ Lgt. Armor Plating destroyed. 00217_ as-23990 sneak attacks. 00217_ T-07 Excavator destroyed. 00217_ as-12842 destroyed. 00220_ as-74847 destroyed. 00222_ as-06462 destroyed. 00226_ as-93852 destroyed. 00228_ Grenade Launcher destroyed. 00231_ Acquired 20 matter. 00233_ Acquired 19 matter. 00234_ Acquired 16 matter. 00236_ Searching scrap... 00236_ Found Lgt. EM Pulse Cannon. 00236_ Found Field Recycling Unit. 00236_ Found Imp. Light Cannon. 00236_ Found 35 Matter. 00266_ A Ripper has been hastily shoved under some rubble with a note attached: "Rip and tear!" 00267_ Acquired Ripper. Map ----- +----------------------------------------------------+ | ## #??##### #??? | | % % ##??# #??? | | % ##???# ## #??? | | % ####????# ## #??? | | ## ##??????## ### #??? | | # #### #???????# ### ## #??? | | # ???# ##??????# ######## #??? | | #?????# ####???# #???????####??? | | % #?????## ##?## ##?????????????? | | #?????## ### ##??????????????? | | #????#### ##??????????????? | | ###????# ! ##?????####????? | | #?????# %= ##???# ###??? | | ##????# ! ##?# ##?? | | #????## ## ## #?? | | #?????## ## ####### #?? | | ##??????####?## ##?????## #?? | | #?????????????## ###???????# ######?? | | =##??????????????######?????????# ##??????? | | ##??????????????????????????????# ##???????? | | #???????????????????????????????## #????????? | | ???????????????????????####??????## ##????????? | | ??????????????????????## ##??????####?????????? | | ##############???????## #???????????????????? | | %! #?????### #?####??????????????? | | ] ] #????## @ ### ##?????????????? | | ########### #???## a ### ##????????????? | | ??????????# #???# ##?# ####?##??????? | | ??????????# ##### a#### ## ##?????? | | ??????????# ### ## #?????? | | ??????????#### #?### ##?????? | | ?????????????# #???## ##??????? | | ?????????????# #????## ##???????? | | ?????????????# #?????# ###????????? | | ?????????????# ###??## ##??????????? | | ?????????????## #### #???????????? | | ?????????????# ## ##???????????? | | ?????????????# ### ##????????????? | | ?????????????# ##?## ##?????????????? | | ?????????????## #???## #??????????????? | | ??????????????## ##????## ##??????????????? | | ???????????????#######??????####???????????????? | | ???????????????????????????????????????????????? | | | | | | | | | | | | | | | +----------------------------------------------------+ Best States ------------- Heat Dissipation 28 Energy Generation 5 Energy Capacity 100 Matter Stores 300 Matter Capacity 300 Sight Range 16 Terrain Scan Density 10 Armor Coverage 150 Evasion (%) 50 Item Schematics ----------------- None Robot Schematics ------------------ None Fabricated ------------ Nothing Alien Tech Used ----------------- None Achievements -------------- None Challenges ------------ None Game ------ Seed StasisPlasmaMount Manual? 0 Play Time 00:04:24 Cumulative 265.7 hours Start 2023.06.01 @ 21:43:45 End 2023.06.01 @ 21:46:25 Sessions 1 Manual Loads 0 Difficulty Rogue Special Mode None Game No. 779 Rogue 779 Adventurer 0 Explorer 0 Win Type - Total 15 Types 8/0/5/2/0/0/0/0/0 Lore% 88 Gallery% 86 Achievement% 77 Wizard Run 0 Options --------- ASCII 0 Keyboard 0 Movement Numpad Keybinds 0 Fullscreen 1 Font 16/SmallcapsGlow Map View 75x55 Tactical HUD 1 Map Filters NONE Filters NONE Steam 1 RUN: 53c16808-1f4f-4f67-8ec3-2bd44c3c5669